bitfinex/quotes_BTCUSD_20240729
["timestamp","ask_amount","ask_price","bid_price","bid_amount"]
[1722212772681,0.00755,69100.0,69099.0,1.83745]
[1722212772896,0.00755,69100.0,69099.0,1.86145]
[1722212773110,0.00755,69100.0,69099.0,1.615899]
[1722212773355,0.00755,69100.0,69099.0,1.629899]
[1722212773561,0.00755,69100.0,69099.0,1.86145]
[1722212773805,0.04335021,69104.0,69103.0,1.093921]
[1722212773987,0.01697951,69106.0,69105.0,0.1428]
[1722212774246,0.06460972,69107.0,69106.0,0.541092]
[1722212774447,0.06459134,69107.0,69106.0,1.745566]
[1722212774662,0.02125951,69107.0,69106.0,1.977094]
[1722212774864,0.00428,69107.0,69106.0,1.837294]
[1722212775249,0.00428,69107.0,69106.0,1.910794]
[1722212775485,0.00428,69107.0,69106.0,1.835294]
[1722212775632,0.00428,69107.0,69106.0,1.837294]
[1722212775867,0.00428,69107.0,69106.0,1.835294]
[1722212776419,0.00428,69107.0,69106.0,1.849294]
[1722212777067,0.00428,69107.0,69106.0,1.851294]
[1722212777257,0.00428,69107.0,69106.0,1.849294]
[1722212777833,0.00428,69107.0,69106.0,2.080822]
[1722212778035,0.00428,69107.0,69106.0,2.294622]
[1722212778891,0.00428,69107.0,69106.0,2.280622]
[1722212779100,0.00428,69107.0,69106.0,2.294622]
[1722212779303,0.003,69117.0,69116.0,0.051]
[1722212779555,0.10825847,69127.0,69116.0,0.051]
[1722212779556,0.11339164,69146.0,69124.0,0.003]
[1722212779705,0.00523366,69146.0,69137.0,1.22538049]
[1722212779861,0.00523366,69146.0,69145.0,0.812889]
[1722212780076,0.00523366,69146.0,69145.0,1.39774879]
[1722212780276,0.02321317,69146.0,69145.0,1.088222]
[1722212780482,0.06145932,69146.0,69145.0,0.859825]
[1722212780699,0.04905873,69146.0,69145.0,1.322619]
[1722212780949,0.04906491,69146.0,69145.0,1.091222]
[1722212781148,0.06143648,69146.0,69145.0,1.322619]
[1722212781353,0.01821317,69146.0,69145.0,1.091222]
[1722212781554,0.01821317,69146.0,69145.0,1.0908624]
[1722212781955,0.01821317,69146.0,69145.0,1.3302594]
[1722212782158,0.01821317,69146.0,69145.0,1.7008564]
[1722212782159,0.00023366,69146.0,69145.0,1.7008564]
[1722212782355,0.00023366,69146.0,69145.0,1.6928564]
[1722212782562,0.00023366,69146.0,69145.0,1.7008564]
[1722212783437,0.00023366,69146.0,69145.0,1.4614594]
[1722212783835,0.00023366,69146.0,69145.0,1.4714594]
[1722212784042,0.01821317,69146.0,69145.0,1.4714594]
[1722212784244,0.00023366,69146.0,69145.0,1.4714594]
[1722212784449,0.00023366,69146.0,69145.0,1.51891338]
[1722212784681,0.01821317,69146.0,69145.0,1.4714594]
[1722212784891,0.00023366,69146.0,69145.0,1.4714594]
[1722212785293,0.01821317,69146.0,69145.0,1.4784594]
[1722212785606,0.01821317,69146.0,69145.0,1.1078624]
[1722212785809,0.01721317,69146.0,69145.0,1.1078624]
[1722212786034,0.01821317,69146.0,69145.0,1.1078624]
[1722212786929,0.01821317,69146.0,69145.0,1.0978624]
[1722212787130,0.01821317,69146.0,69145.0,0.8664654]
[1722212787453,0.01821317,69146.0,69145.0,0.6280684]
[1722212787656,0.01721317,69146.0,69145.0,0.51973]
[1722212787988,0.01721317,69146.0,69145.0,0.52673]
[1722212787989,0.06721317,69146.0,69145.0,0.52673]
[1722212788193,0.06721317,69146.0,69145.0,1.108222]
[1722212788194,0.01821317,69146.0,69145.0,1.108222]
[1722212788449,0.00023366,69146.0,69145.0,1.571016]
[1722212788656,0.01821317,69146.0,69145.0,1.322619]
[1722212788880,0.01821317,69146.0,69145.0,1.097222]
[1722212789087,0.01821317,69146.0,69145.0,1.101222]
[1722212789711,0.01821317,69146.0,69145.0,1.332619]
[1722212790697,0.00023366,69146.0,69145.0,1.332619]
[1722212791059,0.00023366,69146.0,69145.0,1.632619]
[1722212791259,0.00023366,69146.0,69145.0,1.860016]
[1722212791631,0.00023366,69146.0,69145.0,1.335619]
[1722212792171,0.00023366,69146.0,69145.0,1.322619]
[1722212792446,0.00023366,69146.0,69145.0,1.323619]
[1722212792664,0.01721317,69146.0,69145.0,1.323619]
[1722212792867,0.01821317,69146.0,69145.0,1.323619]
[1722212793275,0.01721317,69146.0,69145.0,1.323619]
[1722212793830,0.01721317,69146.0,69145.0,1.326619]
[1722212794026,0.01821317,69146.0,69145.0,1.325619]
[1722212794230,0.01821317,69146.0,69145.0,1.322619]
[1722212794431,0.01821317,69146.0,69145.0,1.331619]
[1722212794639,0.01721317,69146.0,69145.0,1.331619]
[1722212794806,0.01821317,69146.0,69145.0,1.331619]
[1722212795233,0.01821317,69146.0,69145.0,1.337619]
[1722212796558,0.01821317,69146.0,69145.0,1.338543]
[1722212797329,0.01821317,69146.0,69145.0,1.107146]
[1722212797793,0.01721317,69146.0,69145.0,1.338543]
[1722212798028,0.01821317,69146.0,69145.0,1.338543]
[1722212798898,0.01821317,69146.0,69145.0,1.107146]
[1722212800466,0.01821317,69146.0,69145.0,1.338543]
[1722212800973,0.01821317,69146.0,69145.0,1.107146]
[1722212801511,0.01821317,69146.0,69145.0,0.875749]
[1722212801717,0.01821317,69146.0,69145.0,0.644352]
[1722212802028,0.53856015,69146.0,69145.0,0.525654]
[1722212802234,0.58164651,69146.0,69145.0,0.525654]
[1722212802431,0.53856015,69146.0,69145.0,0.525654]
[1722212802815,0.60462183,69146.0,69145.0,0.519654]
[1722212803022,0.53856015,69146.0,69145.0,0.519654]
[1722212803236,0.54099229,69146.0,69145.0,0.520654]
[1722212803460,0.60418969,69146.0,69145.0,0.520654]
[1722212803707,0.37183135,69146.0,69145.0,0.519654]
[1722212803878,0.37283142,69146.0,69145.0,0.520654]
[1722212804247,0.42283145,69146.0,69145.0,0.520654]
[1722212804393,0.35816615,69146.0,69145.0,0.520654]
[1722212804597,0.30816615,69146.0,69145.0,0.520654]
[1722212804796,0.30794072,69146.0,69145.0,0.520654]
[1722212805403,0.39417558,69146.0,69145.0,0.520654]
[1722212805807,0.19224372,69146.0,69145.0,0.636352]
[1722212805967,0.19224372,69146.0,69145.0,0.870749]
[1722212805968,0.10933058,69146.0,69145.0,0.870749]
[1722212806208,0.04464372,69146.0,69145.0,0.861749]
[1722212806414,0.04428383,69146.0,69145.0,1.093146]
[1722212806641,0.04628383,69146.0,69145.0,1.093146]
[1722212806979,0.02121317,69146.0,69145.0,1.093146]
[1722212807113,0.01821317,69146.0,69145.0,1.323543]
[1722212807317,0.02021317,69146.0,69145.0,1.092146]
[1722212807533,0.02021317,69146.0,69145.0,1.097146]
[1722212807940,0.02021317,69146.0,69145.0,0.873749]
[1722212808207,0.02021317,69146.0,69145.0,0.526654]
[1722212808437,0.20061017,69146.0,69145.0,0.523654]
[1722212808648,0.23513481,69146.0,69145.0,0.523654]
[1722212808858,0.53907964,69146.0,69145.0,0.523654]
[1722212809031,0.30768564,69146.0,69145.0,0.523654]
[1722212809292,0.19198864,69146.0,69145.0,0.523654]
[1722212809443,0.27828099,69146.0,69145.0,0.523654]
[1722212809651,0.27628099,69146.0,69145.0,0.510654]
[1722212809851,0.39197799,69146.0,69145.0,0.510654]
[1722212810176,0.27728099,69146.0,69145.0,0.510654]
[1722212810331,0.27437861,69146.0,69145.0,0.510654]
[1722212810533,0.21523384,69146.0,69145.0,0.513654]
[1722212810758,0.12607861,69146.0,69145.0,0.629352]
[1722212810931,0.20927366,69146.0,69145.0,0.860749]
[1722212811139,0.12903297,69146.0,69145.0,1.092146]
[1722212811375,0.04366915,69146.0,69145.0,1.092146]
[1722212811574,0.04366915,69146.0,69145.0,0.860749]
[1722212811776,0.04366915,69146.0,69145.0,0.626352]
[1722212811977,0.13091181,69146.0,69145.0,0.629352]
[1722212812181,0.13003297,69146.0,69145.0,0.626352]
[1722212812381,0.15153459,69146.0,69145.0,0.510654]
[1722212812637,0.15053459,69146.0,69145.0,0.510654]
[1722212812847,0.15053459,69146.0,69145.0,0.512654]
[1722212813254,0.46282859,69146.0,69145.0,0.510654]
[1722212813454,0.24479525,69146.0,69145.0,0.510654]
[1722212813656,0.24622739,69146.0,69145.0,0.510654]
[1722212813869,0.27904231,69146.0,69145.0,0.510654]
[1722212814032,0.37499786,69146.0,69145.0,0.510654]
[1722212814247,0.37399786,69146.0,69145.0,0.510654]
[1722212814446,0.39171827,69146.0,69145.0,0.510654]
[1722212814612,0.27702127,69146.0,69145.0,0.510654]
[1722212815019,0.27602127,69146.0,69145.0,0.510654]
[1722212815223,0.27702127,69146.0,69145.0,0.510654]
[1722212815437,0.39415041,69146.0,69145.0,0.510654]
[1722212815641,0.28002127,69146.0,69145.0,0.510654]
[1722212816379,0.28002127,69146.0,69145.0,0.626352]
[1722212816813,0.39571827,69146.0,69145.0,0.510654]
[1722212817040,0.16191317,69146.0,69145.0,0.510654]
[1722212817328,0.27846972,69146.0,69145.0,0.510654]
[1722212817561,0.16391317,69146.0,69145.0,0.510654]
[1722212817794,0.27822875,69146.0,69145.0,0.510654]
[1722212818267,0.13552875,69146.0,69145.0,0.510654]
[1722212818421,0.07722067,69146.0,69145.0,0.860749]
[1722212818621,0.07622067,69146.0,69145.0,1.092146]
[1722212818936,0.07722067,69146.0,69145.0,0.860749]
[1722212819341,0.07622067,69146.0,69145.0,0.860749]
[1722212819477,0.07722067,69146.0,69145.0,1.092146]
[1722212819678,0.07722067,69146.0,69145.0,0.860749]
[1722212819679,0.07522067,69146.0,69145.0,0.860749]
[1722212819878,0.17363837,69146.0,69145.0,1.092146]
[1722212820080,0.01921317,69146.0,69145.0,1.095146]
[1722212820282,0.01821317,69146.0,69145.0,1.095146]
[1722212820505,0.04390846,69146.0,69145.0,1.095146]
[1722212821119,0.04190846,69146.0,69145.0,1.326543]
[1722212821341,0.04290846,69146.0,69145.0,1.326543]
[1722212821534,0.17284181,69146.0,69145.0,1.327543]
[1722212821739,0.21165801,69146.0,69145.0,1.327543]
[1722212822386,0.08172466,69146.0,69145.0,1.327543]
[1722212822594,0.17294328,69146.0,69145.0,1.327543]
[1722212823160,0.17294328,69146.0,69145.0,1.096146]
[1722212823161,0.08417096,69146.0,69145.0,1.096146]
[1722212823540,0.18908348,69146.0,69145.0,0.633352]
[1722212823743,0.18908348,69146.0,69145.0,1.096146]
[1722212823744,0.08417096,69146.0,69145.0,1.096146]
[1722212823958,0.23052494,69146.0,69145.0,0.633352]
[1722212824217,0.23052494,69146.0,69145.0,0.514654]
[1722212824418,0.19325749,69146.0,69145.0,0.513654]
[1722212824602,0.54034849,69146.0,69145.0,0.517654]
[1722212824807,0.54034849,69146.0,69145.0,0.514654]
[1722212824808,0.64186992,69146.0,69145.0,0.514654]
[1722212824969,0.92169606,69146.0,69145.0,0.514654]
[1722212825131,0.92169606,69146.0,69145.0,0.518654]
[1722212825132,1.40191749,69146.0,69145.0,0.518654]
[1722212825343,1.19165174,69146.0,69145.0,0.44969679]
[1722212825546,1.40036315,69146.0,69145.0,0.44969679]
[1722212825801,0.82760663,69146.0,69145.0,0.45269679]
[1722212825998,0.24912977,69146.0,69145.0,0.44969679]
[1722212826204,0.31782677,69146.0,69145.0,0.44969679]
[1722212826479,0.64522077,69146.0,69145.0,0.44969679]
[1722212826686,0.92761477,69146.0,69145.0,0.44969679]
[1722212826870,0.69622077,69146.0,69145.0,0.44969679]
[1722212827054,0.64522077,69146.0,69145.0,0.44969679]
[1722212827287,0.69695055,69146.0,69145.0,0.44869679]
[1722212827464,0.13582977,69146.0,69145.0,0.44869679]
[1722212827835,0.07296962,69146.0,69145.0,0.56439479]
[1722212828050,0.07396962,69146.0,69145.0,0.56439479]
[1722212828436,0.07078285,69146.0,69145.0,0.44869679]
[1722212828707,0.07262285,69146.0,69145.0,0.44869679]
[1722212828880,0.07262285,69146.0,69145.0,0.44969679]
[1722212829263,0.07262285,69146.0,69145.0,0.44869679]
[1722212830013,0.41871385,69146.0,69145.0,0.44869679]
[1722212830247,1.23251291,69146.0,69145.0,0.44869679]
[1722212830666,1.46390691,69146.0,69145.0,0.44869679]
[1722212830865,1.25906802,69146.0,69145.0,0.44869679]
[1722212831153,1.26006802,69146.0,69145.0,0.44869679]
[1722212831302,1.45835432,69146.0,69145.0,0.44869679]
[1722212831534,1.45646808,69146.0,69145.0,0.44869679]
[1722212831738,1.43505298,69146.0,69145.0,0.44869679]
[1722212832177,1.69244698,69146.0,69145.0,0.44869679]
[1722212832774,1.68944698,69146.0,69145.0,0.44869679]
[1722212832944,1.69544698,69146.0,69145.0,0.44969679]
[1722212833145,1.90680059,69146.0,69145.0,0.44969679]
[1722212833358,1.69344698,69146.0,69145.0,0.42698854]
[1722212833696,1.68744698,69146.0,69145.0,0.42598854]
[1722212833851,1.69344698,69146.0,69145.0,0.42698854]
[1722212834056,1.64244698,69146.0,69145.0,0.42698854]
[1722212834269,1.49516068,69146.0,69145.0,0.42698854]
[1722212834476,1.49471932,69146.0,69145.0,0.42698854]
[1722212834839,1.54571932,69146.0,69145.0,0.42698854]
[1722212835042,1.40448128,69146.0,69145.0,0.42698854]
[1722212835244,1.80019397,69146.0,69145.0,0.42598854]
[1722212835533,2.13919797,69146.0,69145.0,0.002924]
[1722212835732,0.41220551,69119.0,69118.0,0.07512979]
[1722212835861,0.24947351,69116.0,69115.0,0.45077872]
[1722212836065,0.01697951,69112.0,69111.0,0.07512979]
[1722212836267,0.01797951,69112.0,69111.0,0.36451979]
[1722212836470,0.13373351,69112.0,69111.0,0.36451979]
[1722212836706,0.7723012,69112.0,69111.0,0.36451979]
[1722212836901,1.10418892,69112.0,69111.0,0.36451979]
[1722212837102,1.0864092,69112.0,69111.0,0.36451979]
[1722212837473,1.05885751,69112.0,69111.0,0.37451979]
[1722212837681,0.52362409,69112.0,69111.0,0.37451979]
[1722212837912,0.62362409,69112.0,69111.0,0.37451979]
[1722212838320,0.57262409,69112.0,69111.0,0.37451979]
[1722212838447,0.04676209,69112.0,69111.0,0.78838579]
[1722212838648,0.04676209,69112.0,69111.0,1.01989679]
[1722212838649,0.1549035,69112.0,69111.0,1.01989679]
[1722212838850,0.13327162,69112.0,69111.0,1.01989679]
[1722212839058,0.1332726,69112.0,69111.0,1.01989679]
[1722212839235,0.04676209,69112.0,69111.0,1.01989679]
[1722212839441,0.1332726,69112.0,69111.0,0.78838579]
[1722212839665,0.1332726,69112.0,69111.0,1.01989679]
[1722212839866,0.04576209,69112.0,69111.0,1.32330779]
[1722212840087,0.11362742,69112.0,69111.0,1.32330779]
[1722212840295,0.02097951,69112.0,69111.0,1.32330779]
[1722212840498,0.01797951,69112.0,69111.0,1.32330779]
[1722212840872,0.02297951,69112.0,69111.0,1.32330779]
[1722212841081,0.02297951,69112.0,69111.0,1.09179679]
[1722212841287,0.06721049,69112.0,69111.0,1.09179679]
[1722212841705,0.02397951,69112.0,69111.0,1.09179679]
[1722212842321,0.02397951,69112.0,69111.0,0.86028579]
[1722212842821,0.02397951,69112.0,69111.0,1.00989679]
[1722212842822,0.00743806,69112.0,69111.0,1.00989679]
[1722212843009,0.00843806,69112.0,69111.0,1.00989679]
[1722212843367,0.00743806,69112.0,69111.0,1.00989679]
[1722212843573,0.00143806,69112.0,69111.0,0.71178579]
[1722212843781,0.09994202,69112.0,69111.0,0.71178579]
[1722212843984,0.47845125,69112.0,69111.0,0.28939]
[1722212844201,0.81797164,69112.0,69111.0,0.28939]
[1722212844393,1.04947964,69112.0,69111.0,0.28939]
[1722212844991,1.04247964,69112.0,69111.0,0.28939]
[1722212845193,1.27398764,69112.0,69111.0,0.28939]
[1722212845415,1.4113864,69112.0,69111.0,0.28939]
[1722212845840,1.46638813,69112.0,69111.0,0.28939]
[1722212846119,1.48038813,69112.0,69111.0,0.28939]
[1722212846407,1.39371482,69112.0,69111.0,0.28939]
[1722212846575,1.26316365,69112.0,69111.0,0.28939]
[1722212846789,1.40095996,69112.0,69111.0,0.28939]
[1722212846994,1.48755307,69112.0,69111.0,0.28939]
[1722212847166,1.70606107,69112.0,69111.0,0.28939]
[1722212847352,1.80606309,69112.0,69111.0,0.28939]
[1722212847556,1.82006309,69112.0,69111.0,0.28939]
[1722212848255,1.73246796,69112.0,69111.0,0.28939]
[1722212848713,1.82066247,69112.0,69111.0,0.28939]
[1722212848889,1.82066062,69112.0,69111.0,0.28939]
[1722212849100,1.80666062,69112.0,69111.0,0.28939]
[1722212849299,1.72022282,69112.0,69111.0,0.28939]
[1722212849560,1.58935633,69112.0,69111.0,0.28939]
[1722212849730,1.40176177,69112.0,69111.0,0.28939]
[1722212849931,1.46212266,69112.0,69111.0,0.28939]
[1722212850139,1.40176177,69112.0,69111.0,0.28939]
[1722212850378,1.53120146,69112.0,69111.0,0.28939]
[1722212850554,1.55202134,69112.0,69111.0,0.28939]
[1722212851003,1.40176177,69112.0,69111.0,0.28939]
[1722212851350,1.41136405,69112.0,69111.0,0.28939]
[1722212852156,1.19956405,69112.0,69111.0,0.28939]
[1722212852356,0.28604034,69112.0,69111.0,0.28939]
[1722212852557,0.42812217,69112.0,69111.0,0.28939]
[1722212852762,0.65963017,69112.0,69111.0,0.28939]
[1722212852984,0.89171015,69112.0,69111.0,0.28939]
[1722212853899,0.66020215,69112.0,69111.0,0.28939]
[1722212854279,0.56020215,69112.0,69111.0,0.28939]
[1722212854693,0.79171015,69112.0,69111.0,0.28939]
[1722212855070,0.55973414,69112.0,69111.0,0.28939]
[1722212855270,0.65179427,69112.0,69111.0,0.28939]
[1722212855514,0.62536247,69112.0,69111.0,0.28939]
[1722212855748,0.10287037,69112.0,69111.0,0.28939]
[1722212855900,0.1891179,69112.0,69111.0,0.28939]
[1722212856101,0.2891179,69112.0,69111.0,0.28939]
[1722212856478,0.2751179,69112.0,69111.0,0.28939]
[1722212856952,0.2861179,69112.0,69111.0,0.28939]
[1722212857340,0.19987037,69112.0,69111.0,0.28939]
[1722212857632,0.18612699,69112.0,69111.0,0.28939]
[1722212858025,0.18612699,69112.0,69111.0,0.405145]
[1722212858204,0.18612699,69112.0,69111.0,0.28939]
[1722212858645,0.34624479,69112.0,69111.0,0.28939]
[1722212858820,0.46177103,69112.0,69111.0,0.28939]
[1722212859022,0.37550741,69112.0,69111.0,0.28939]
[1722212859253,0.38450741,69112.0,69111.0,0.28939]
[1722212859765,0.25938961,69112.0,69111.0,0.28939]
[1722212859968,0.31038961,69112.0,69111.0,0.28939]
[1722212860370,0.42679192,69112.0,69111.0,0.28939]
[1722212860805,0.36996239,69112.0,69111.0,0.28939]
[1722212861009,0.70929992,69112.0,69111.0,0.28939]
[1722212861216,1.03582238,69112.0,69111.0,0.28939]
[1722212861416,0.92799285,69112.0,69111.0,0.28939]
[1722212861771,0.92759268,69112.0,69111.0,0.28939]
[1722212862141,0.84222252,69112.0,69111.0,0.28939]
[1722212862337,0.86482326,69112.0,69111.0,0.290314]
[1722212862549,0.92082326,69112.0,69111.0,0.290314]
[1722212862845,0.9191488,69112.0,69111.0,0.290314]
[1722212863048,0.8681488,69112.0,69111.0,0.290314]
[1722212863251,1.2506568,69112.0,69111.0,0.290314]
[1722212863831,1.38008183,69112.0,69111.0,0.290314]
[1722212863982,1.31511519,69112.0,69111.0,0.290314]
[1722212864151,1.51637476,69112.0,69111.0,0.290314]
[1722212864387,1.47876902,69112.0,69111.0,0.290314]
[1722212864605,1.14800145,69112.0,69111.0,0.290314]
[1722212864835,1.14800145,69112.0,69111.0,0.352514]
[1722212864836,0.39103206,69112.0,69111.0,0.352514]
[1722212865035,0.24652799,69112.0,69111.0,0.69978]
[1722212865238,0.11152799,69112.0,69111.0,1.162802]
[1722212865446,0.05298826,69112.0,69111.0,1.244102]
[1722212865622,0.03998826,69112.0,69111.0,1.244102]
[1722212865818,0.05298826,69112.0,69111.0,1.244102]
[1722212866090,0.03898826,69112.0,69111.0,1.244102]
[1722212866221,0.03898826,69112.0,69111.0,1.475613]
[1722212866222,0.02698826,69112.0,69111.0,1.475613]
[1722212866438,0.01627806,69112.0,69111.0,1.475613]
[1722212866814,0.047,69128.0,69114.0,0.003]
[1722212866815,0.00143806,69116.0,69114.0,0.003]
[1722212867014,0.10788509,69132.0,69111.0,0.290314]
[1722212867015,0.00043806,69121.0,69120.0,0.350221]
[1722212867289,0.00143806,69123.0,69120.0,0.605662]
[1722212867410,0.00143806,69124.0,69123.0,0.489906]
[1722212867613,0.08630974,69140.0,69123.0,0.489906]
[1722212867614,0.00143806,69127.0,69126.0,0.1427]
[1722212867808,0.17746926,69148.0,69126.0,0.1427]
[1722212867809,0.00143806,69128.0,69127.0,0.347187]
[1722212868014,0.00043806,69128.0,69127.0,1.241123]
[1722212868233,0.00043806,69128.0,69127.0,1.472581]
[1722212868476,0.00143806,69128.0,69127.0,1.472581]
[1722212868859,0.04315959,69138.0,69136.0,0.378627]
[1722212869062,0.04315959,69139.0,69138.0,0.349131]
[1722212869225,0.02426737,69139.0,69138.0,0.638411]
[1722212869665,0.02426737,69139.0,69138.0,0.869832]
[1722212870290,0.0674395,69139.0,69138.0,0.868832]
[1722212870496,0.02426737,69139.0,69138.0,0.866832]
[1722212870893,0.31975209,69144.0,69143.0,0.115702]
[1722212871119,0.13195748,69144.0,69143.0,0.703666]
[1722212871361,0.13195748,69144.0,69143.0,1.245474]
[1722212871362,0.06476304,69144.0,69143.0,1.245474]
[1722212871518,0.08742377,69146.0,69145.0,0.578492]
[1722212871723,0.08983297,69146.0,69145.0,0.858742]
[1722212872158,0.06583511,69146.0,69145.0,0.858742]
[1722212873164,0.00107366,69146.0,69145.0,1.092139]
[1722212873340,0.04423561,69146.0,69145.0,1.090139]
[1722212873543,0.04423529,69146.0,69145.0,1.090139]
[1722212873726,0.04423529,69146.0,69145.0,1.156439]
[1722212873927,0.00107366,69146.0,69145.0,1.466836]
[1722212874351,0.00107366,69146.0,69145.0,1.50497763]
[1722212874750,0.00107366,69146.0,69145.0,1.50697763]
[1722212875067,0.00207366,69146.0,69145.0,1.50697763]
[1722212876400,0.00207366,69146.0,69145.0,1.237439]
[1722212876599,0.00207366,69146.0,69145.0,0.774645]
[1722212877005,0.00207366,69146.0,69145.0,1.006042]
[1722212877209,0.00107366,69146.0,69145.0,1.006042]
[1722212877412,0.00107366,69146.0,69145.0,1.004042]
[1722212877614,0.00107366,69146.0,69145.0,0.43455]
[1722212877867,0.00107366,69146.0,69145.0,0.553248]
[1722212878373,0.00107366,69146.0,69145.0,0.35855]
[1722212878575,0.04419748,69146.0,69145.0,0.35855]
[1722212878780,0.04419748,69146.0,69145.0,0.474248]
[1722212878949,0.00107366,69146.0,69145.0,0.702645]
[1722212879188,0.00107366,69146.0,69145.0,0.934042]
[1722212879390,0.00107366,69146.0,69145.0,0.936042]
[1722212879391,0.00207366,69146.0,69145.0,0.936042]
[1722212879565,0.00107366,69146.0,69145.0,1.167439]
[1722212880028,0.00207366,69146.0,69145.0,1.167439]
[1722212880240,0.00207366,69146.0,69145.0,1.245639]
[1722212880656,0.00307366,69146.0,69145.0,1.014242]
[1722212880802,0.00207366,69146.0,69145.0,1.014242]
[1722212881010,0.00207366,69146.0,69145.0,0.783845]
[1722212881207,0.0045058,69146.0,69145.0,0.472248]
[1722212881473,0.0045058,69146.0,69145.0,0.471248]
[1722212881679,0.00307366,69146.0,69145.0,0.471248]
[1722212881889,0.00307366,69146.0,69145.0,0.707645]
[1722212882076,0.00307366,69146.0,69145.0,0.476248]
[1722212882327,0.16185908,69146.0,69145.0,0.35555]
[1722212882536,0.79307728,69146.0,69145.0,0.28925]
[1722212882742,0.90679834,69146.0,69145.0,0.28925]
[1722212882944,0.56768328,69146.0,69145.0,0.28925]
[1722212883154,0.79907728,69146.0,69145.0,0.28925]
[1722212883327,1.06347728,69146.0,69145.0,0.28925]
[1722212883889,1.24789462,69146.0,69145.0,0.28925]
[1722212884296,1.25089462,69146.0,69145.0,0.28925]
[1722212884488,1.25176925,69146.0,69145.0,0.28925]
[1722212884708,1.30406574,69146.0,69145.0,0.28925]
[1722212884912,1.30406574,69146.0,69125.0,0.0639]
[1722212884913,0.11573,69126.0,69125.0,0.0639]
[1722212885113,0.115733,69125.0,69120.0,0.0639]
[1722212885311,0.048,69128.0,69120.0,0.0639]
[1722212885312,0.115735,69123.0,69120.0,0.0639]
[1722212885554,0.380135,69124.0,69122.0,0.36446979]
[1722212885696,0.3144,69124.0,69122.0,0.36446979]
[1722212885901,0.165735,69123.0,69122.0,0.36446979]
[1722212886318,0.347206,69123.0,69122.0,0.36446979]
[1722212886529,0.75103785,69123.0,69122.0,0.28934]
[1722212886734,1.14697909,69123.0,69122.0,0.28934]
[1722212886913,1.50288223,69123.0,69122.0,0.18096876]
[1722212887162,1.50145009,69123.0,69122.0,0.18096876]
[1722212887363,1.50245009,69123.0,69122.0,0.17964792]
[1722212887875,1.50145009,69123.0,69122.0,0.17964792]
[1722212888083,1.51565859,69123.0,69122.0,0.17964792]
[1722212888766,1.50165859,69123.0,69122.0,0.17964792]
[1722212888919,1.51565859,69123.0,69122.0,0.17964792]
[1722212890182,1.42108835,69123.0,69122.0,0.17964792]
[1722212890387,1.43508835,69123.0,69122.0,0.17964792]
[1722212890808,1.44476476,69123.0,69122.0,0.17964792]
[1722212891019,1.43076476,69123.0,69122.0,0.17964792]
[1722212891261,1.44445889,69123.0,69122.0,0.17964792]
[1722212891436,1.59471846,69123.0,69122.0,0.17964792]
[1722212891639,1.57045498,69123.0,69122.0,0.17964792]
[1722212891842,1.59471846,69123.0,69122.0,0.17964792]
[1722212892071,1.58071846,69123.0,69122.0,0.17964792]
[1722212892506,1.82618946,69123.0,69122.0,0.17964792]
[1722212893017,1.84018946,69123.0,69122.0,0.17964792]
[1722212893152,1.85418946,69123.0,69122.0,0.17964792]
[1722212893776,1.85418946,69123.0,69100.0,0.07512979]
[1722212893777,1.042448,69106.0,69100.0,0.07512979]
[1722212894006,1.06671148,69106.0,69105.0,0.12036732]
[1722212894211,1.373976,69106.0,69105.0,0.12036732]
[1722212894411,1.80348398,69106.0,69105.0,0.40977732]
[1722212894720,1.88282737,69106.0,69105.0,0.40977732]
[1722212894840,1.86204667,69106.0,69105.0,0.39977836]
[1722212895241,1.93276804,69106.0,69105.0,0.39977836]
[1722212895442,1.38769641,69106.0,69105.0,0.39977836]
[1722212895642,1.43569641,69106.0,69105.0,0.39977836]
[1722212895886,1.66722441,69106.0,69105.0,0.39977836]
[1722212896462,1.68122441,69106.0,69105.0,0.39977836]
[1722212896664,1.44969641,69106.0,69105.0,0.39977836]
[1722212896938,1.59995598,69106.0,69105.0,0.37977836]
[1722212897318,1.58612522,69106.0,69105.0,0.37977836]
[1722212897635,1.60012522,69106.0,69105.0,0.37977836]
[1722212897859,1.58612522,69106.0,69105.0,0.37977836]
[1722212898387,1.80365322,69106.0,69105.0,0.37977836]
[1722212898587,1.81765322,69106.0,69105.0,0.37977836]
[1722212898846,1.82732084,69106.0,69105.0,0.37977836]
[1722212899001,1.84132084,69106.0,69105.0,0.37977836]
[1722212899203,1.99402084,69106.0,69105.0,0.35877836]
[1722212899407,1.98002084,69106.0,69105.0,0.35877836]
[1722212899807,1.99402084,69106.0,69105.0,0.30818836]
[1722212900091,0.958593,69085.0,69084.0,0.07164379]
[1722212900312,0.495427,69079.0,69072.0,0.45077872]
[1722212900508,0.495427,69079.0,69037.0,0.000924]
[1722212900509,0.579172,69064.0,69060.0,0.0611]
[1722212900684,0.04304966,69076.0,69060.0,0.0611]
[1722212900685,0.148,69072.0,69060.0,0.0611]
[1722212900946,0.048,69074.0,69071.0,0.07512979]
[1722212901114,0.048,69074.0,69072.0,0.28955]
[1722212901326,0.579095,69073.0,69072.0,0.28955]
[1722212901550,0.23162,69079.0,69075.0,0.115815]
[1722212901551,0.00143214,69077.0,69075.0,0.115815]
[1722212901723,0.00143214,69078.0,69074.0,0.115816]
[1722212901924,0.163809,69079.0,69076.0,0.28954]
[1722212901925,0.231625,69077.0,69076.0,0.28954]
[1722212902142,0.048,69079.0,69076.0,0.28954]
[1722212902378,0.048,69079.0,69078.0,0.06112979]
[1722212902513,0.048,69079.0,69078.0,0.35065979]
[1722212902919,0.163809,69079.0,69078.0,0.33965979]
[1722212903364,0.395427,69079.0,69078.0,0.23965979]
[1722212904110,0.958663,69079.0,69078.0,0.23965979]
[1722212904661,0.961663,69079.0,69078.0,0.23965979]
[1722212904871,1.270881,69079.0,69078.0,0.23965979]
[1722212905070,1.393881,69079.0,69078.0,0.23965979]
[1722212905296,1.68451026,69079.0,69078.0,0.23965979]
[1722212905496,2.10510337,69079.0,69078.0,0.23065979]
[1722212905704,0.048,69054.0,69045.0,0.07712979]
[1722212905855,0.397559,69053.0,69052.0,0.008965]
[1722212906059,0.727265,69053.0,69052.0,0.008965]
[1722212906501,0.727265,69053.0,69052.0,0.298595]
[1722212906702,0.958971,69053.0,69052.0,0.298595]
[1722212907081,1.00438889,69053.0,69052.0,0.298595]
[1722212907286,0.048,69053.0,69052.0,0.298595]
[1722212907498,0.163853,69053.0,69052.0,0.298595]
[1722212907700,0.395559,69053.0,69052.0,0.298595]